[Event "*** Titled Tuesday Blitz"]
[Site "Chess.com"]
[Date "2020.04.14"]
[Round "9"]
[White "mrkvoz"]
[Black "Stewie_89"]
[Result "1-0"]
[WhiteElo "2788"]
[BlackElo "2633"]
[TimeControl "180+1"]
[EndTime "11:42:39 PDT"]
[Termination "mrkvoz won by resignation"]

1. e4 {[%clk 0:03:00.9]} 1... d5 {[%clk 0:02:54.8]} 2. exd5 {[%clk 0:03:00.2]}
2... Qxd5 {[%clk 0:02:55.7]} 3. Nc3 {[%clk 0:03:00]} 3... Qa5 {[%clk 0:02:55.8]}
4. Bc4 {[%clk 0:03:00]} 4... Nf6 {[%clk 0:02:55.4]} 5. d3 {[%clk 0:03:00.5]}
5... c6 {[%clk 0:02:55]} 6. Bd2 {[%clk 0:02:59.9]} 6... Bf5 {[%clk 0:02:47.8]}
7. Qe2 {[%clk 0:02:56]} 7... e6 {[%clk 0:02:46.5]} 8. h3 {[%clk 0:02:55.2]} 8...
h6 {[%clk 0:02:40.6]} 9. Nd5 {[%clk 0:02:55.1]} 9... Qd8 {[%clk 0:02:39.7]} 10.
Nxf6+ {[%clk 0:02:55.2]} 10... Qxf6 {[%clk 0:02:31.4]} 11. Bc3 {[%clk
0:02:55.2]} 11... Bb4 {[%clk 0:02:27.6]} 12. Qd2 {[%clk 0:02:32.4]} 12... Bxc3
{[%clk 0:02:27.1]} 13. Qxc3 {[%clk 0:02:32.9]} 13... Qxc3+ {[%clk 0:02:26.2]}
14. bxc3 {[%clk 0:02:33.8]} 14... Nd7 {[%clk 0:02:26.2]} 15. a4 {[%clk
0:02:33.6]} 15... b6 {[%clk 0:02:23.8]} 16. Nf3 {[%clk 0:02:30.8]} 16... O-O
{[%clk 0:02:10.5]} 17. Kd2 {[%clk 0:02:27.4]} 17... Rfd8 {[%clk 0:02:09.1]} 18.
Kc1 {[%clk 0:02:26.5]} 18... a6 {[%clk 0:02:08]} 19. Re1 {[%clk 0:02:24.8]}
19... b5 {[%clk 0:02:07.2]} 20. Bb3 {[%clk 0:02:19.5]} 20... Nc5 {[%clk
0:02:04.6]} 21. Nd4 {[%clk 0:02:19.6]} 21... Bxd3 {[%clk 0:01:51.5]} 22. Nxc6
{[%clk 0:02:14.3]} 22... Re8 {[%clk 0:01:48.1]} 23. Re5 {[%clk 0:02:05.4]} 23...
Nxb3+ {[%clk 0:01:42.3]} 24. cxb3 {[%clk 0:02:05.1]} 24... bxa4 {[%clk
0:01:38.2]} 25. bxa4 {[%clk 0:01:25.5]} 25... Rac8 {[%clk 0:01:33.7]} 26. Kd2
{[%clk 0:01:21.2]} 26... Bc4 {[%clk 0:01:10]} 27. Rc5 {[%clk 0:01:16]} 27...
Red8+ {[%clk 0:00:35.7]} 28. Ke1 {[%clk 0:01:12.7]} 28... Rxc6 {[%clk 0:00:32]}
29. Rxc6 {[%clk 0:01:12.4]} 29... Bd5 {[%clk 0:00:32.6]} 30. Rxa6 {[%clk
0:01:08.4]} 30... Bxg2 {[%clk 0:00:32.9]} 31. a5 {[%clk 0:01:07.6]} 31... Bxh3
{[%clk 0:00:32.5]} 32. Rb6 {[%clk 0:01:07.3]} 32... Bg2 {[%clk 0:00:30.4]} 33.
a6 {[%clk 0:01:07.4]} 33... Rc8 {[%clk 0:00:19.9]} 34. Ra3 {[%clk 0:01:01]}
34... h5 {[%clk 0:00:17.8]} 35. a7 {[%clk 0:01:00.8]} 35... Kh7 {[%clk
0:00:18.3]} 36. Rb8 {[%clk 0:00:58]} 36... Rc4 {[%clk 0:00:18.4]} 37. a8=Q
{[%clk 0:00:58]} 37... Bxa8 {[%clk 0:00:18.9]} 38. Rbxa8 {[%clk 0:00:58.9]}
38... g5 {[%clk 0:00:17.7]} 39. R8a4 {[%clk 0:00:57.2]} 39... Rc6 {[%clk
0:00:17.2]} 40. c4 {[%clk 0:00:52.6]} 40... h4 {[%clk 0:00:17.2]} 41. Kf1 {[%clk
0:00:51.4]} 41... Kg6 {[%clk 0:00:17.3]} 42. Kg2 {[%clk 0:00:51.2]} 42... Kh5
{[%clk 0:00:16.9]} 43. Rc3 {[%clk 0:00:50.7]} 43... Rc5 {[%clk 0:00:16]} 44. Rb4
{[%clk 0:00:50.1]} 44... f5 {[%clk 0:00:15.3]} 45. Rb5 {[%clk 0:00:50.3]} 45...
Rc7 {[%clk 0:00:15.4]} 46. c5 {[%clk 0:00:50.7]} 46... g4 {[%clk 0:00:15.7]} 47.
c6 {[%clk 0:00:51.1]} 47... Kg5 {[%clk 0:00:15.3]} 48. Rb7 {[%clk 0:00:50.4]}
48... h3+ {[%clk 0:00:15.2]} 49. Kh2 {[%clk 0:00:49.8]} 49... Rc8 {[%clk
0:00:15]} 50. c7 {[%clk 0:00:49.7]} 1-0

[Event "*** Titled Tuesday Blitz"]
[Site "Chess.com"]
[Date "2020.04.14"]
[Round "9"]
[White "Kumi29"]
[Black "Mbneu"]
[Result "1-0"]
[WhiteElo "2395"]
[BlackElo "2211"]
[TimeControl "180+1"]
[EndTime "11:42:41 PDT"]
[Termination "Kumi29 won by checkmate"]

1. d4 {[%clk 0:03:00.9]} 1... Nf6 {[%clk 0:02:59.4]} 2. Bg5 {[%clk 0:03:00.4]}
2... c5 {[%clk 0:02:58.2]} 3. d5 {[%clk 0:03:00.3]} 3... b5 {[%clk 0:02:55.2]}
4. c4 {[%clk 0:02:51.8]} 4... bxc4 {[%clk 0:02:50.9]} 5. Nc3 {[%clk 0:02:51.2]}
5... d6 {[%clk 0:02:47.3]} 6. e4 {[%clk 0:02:49.9]} 6... Nbd7 {[%clk 0:02:47.5]}
7. Bxc4 {[%clk 0:02:45.7]} 7... h6 {[%clk 0:02:46.2]} 8. Bh4 {[%clk 0:02:44.3]}
8... g5 {[%clk 0:02:45.9]} 9. Bg3 {[%clk 0:02:44.6]} 9... Bg7 {[%clk 0:02:45.9]}
10. Nge2 {[%clk 0:02:42.9]} 10... Rb8 {[%clk 0:02:44.6]} 11. Qd2 {[%clk
0:02:33.6]} 11... Qb6 {[%clk 0:02:35.3]} 12. Rb1 {[%clk 0:02:10]} 12... Ba6
{[%clk 0:02:33.4]} 13. Bxa6 {[%clk 0:02:08.9]} 13... Qxa6 {[%clk 0:02:33]} 14.
O-O {[%clk 0:02:09]} 14... Ng4 {[%clk 0:02:13.3]} 15. f4 {[%clk 0:02:04.7]}
15... gxf4 {[%clk 0:01:43.1]} 16. Nxf4 {[%clk 0:02:04.1]} 16... Bd4+ {[%clk
0:01:40.5]} 17. Kh1 {[%clk 0:02:02.5]} 17... h5 {[%clk 0:01:38.5]} 18. Nce2
{[%clk 0:01:47.7]} 18... h4 {[%clk 0:01:33.2]} 19. Be1 {[%clk 0:01:39.1]} 19...
Be5 {[%clk 0:01:32.5]} 20. h3 {[%clk 0:01:33.7]} 20... Ngf6 {[%clk 0:01:27.5]}
21. Qe3 {[%clk 0:01:24.3]} 21... Qxa2 {[%clk 0:01:13]} 22. Bc3 {[%clk
0:01:23.1]} 22... Bxc3 {[%clk 0:01:07.9]} 23. Nxc3 {[%clk 0:01:23.5]} 23... Qc4
{[%clk 0:01:04.6]} 24. Rf2 {[%clk 0:01:15.8]} 24... Rb3 {[%clk 0:01:01]} 25. Ra1
{[%clk 0:01:12.5]} 25... a6 {[%clk 0:00:46.3]} 26. Raf1 {[%clk 0:01:09.8]} 26...
Ne5 {[%clk 0:00:41.3]} 27. Ra1 {[%clk 0:01:00.2]} 27... Nxe4 {[%clk 0:00:33]}
28. Qxe4 {[%clk 0:00:51.8]} 28... Rxc3 {[%clk 0:00:32.6]} 29. Qf5 {[%clk
0:00:50.5]} 29... Rc1+ {[%clk 0:00:29.7]} 30. Kh2 {[%clk 0:00:47.8]} 30... Nd7
{[%clk 0:00:20.9]} 31. Rxc1 {[%clk 0:00:38.5]} 31... Qxc1 {[%clk 0:00:19.4]} 32.
Nd3 {[%clk 0:00:39.1]} 32... Qh6 {[%clk 0:00:16.8]} 33. Qxf7+ {[%clk 0:00:38.8]}
33... Kd8 {[%clk 0:00:17]} 34. Nf4 {[%clk 0:00:36.8]} 34... Ne5 {[%clk
0:00:14.9]} 35. Ne6+ {[%clk 0:00:35.7]} 35... Kd7 {[%clk 0:00:15.2]} 36. Qf5
{[%clk 0:00:34.1]} 36... Qf6 {[%clk 0:00:14.5]} 37. Qc2 {[%clk 0:00:27.9]} 37...
Qg6 {[%clk 0:00:11]} 38. Qa4+ {[%clk 0:00:27.6]} 38... Kc8 {[%clk 0:00:10.9]}
39. Qxa6+ {[%clk 0:00:27.1]} 39... Kb8 {[%clk 0:00:11.2]} 40. Qb6+ {[%clk
0:00:25]} 40... Ka8 {[%clk 0:00:11.5]} 41. Nc7# {[%clk 0:00:25.2]} 1-0

[Event "*** Titled Tuesday Blitz"]
[Site "Chess.com"]
[Date "2020.04.14"]
[Round "9"]
[White "ntmh281"]
[Black "RubensCezila"]
[Result "0-1"]
[WhiteElo "2278"]
[BlackElo "2444"]
[TimeControl "180+1"]
[EndTime "11:42:42 PDT"]
[Termination "RubensCezila won by resignation"]

1. d4 {[%clk 0:03:00.9]} 1... Nf6 {[%clk 0:02:59.3]} 2. Bf4 {[%clk 0:02:59.6]}
2... g6 {[%clk 0:02:57.9]} 3. e3 {[%clk 0:02:59.6]} 3... Bg7 {[%clk 0:02:58.3]}
4. Nf3 {[%clk 0:02:59.9]} 4... O-O {[%clk 0:02:58.9]} 5. Bd3 {[%clk 0:02:55.9]}
5... d6 {[%clk 0:02:58.8]} 6. O-O {[%clk 0:02:54.3]} 6... Nbd7 {[%clk
0:02:58.9]} 7. h3 {[%clk 0:02:54.3]} 7... Qe8 {[%clk 0:02:57.8]} 8. Bh2 {[%clk
0:02:47.2]} 8... e5 {[%clk 0:02:57.4]} 9. dxe5 {[%clk 0:02:38]} 9... dxe5 {[%clk
0:02:57.3]} 10. e4 {[%clk 0:02:35.6]} 10... Qe7 {[%clk 0:02:56.3]} 11. Nc3
{[%clk 0:02:34]} 11... c6 {[%clk 0:02:54]} 12. Qe2 {[%clk 0:02:32.5]} 12... Nh5
{[%clk 0:02:52.8]} 13. Qe3 {[%clk 0:02:30.2]} 13... Nc5 {[%clk 0:02:50.3]} 14.
Bc4 {[%clk 0:02:29.4]} 14... a5 {[%clk 0:02:46.4]} 15. a3 {[%clk 0:02:24.7]}
15... Kh8 {[%clk 0:02:40.3]} 16. Rfd1 {[%clk 0:02:17.8]} 16... b5 {[%clk
0:02:01.1]} 17. Ba2 {[%clk 0:01:32.8]} 17... b4 {[%clk 0:01:57.8]} 18. Ne2
{[%clk 0:01:30.9]} 18... Ba6 {[%clk 0:01:44.5]} 19. Nc1 {[%clk 0:01:03.7]} 19...
Rad8 {[%clk 0:01:28.5]} 20. Nb3 {[%clk 0:01:03.2]} 20... Nb7 {[%clk 0:01:18.8]}
21. axb4 {[%clk 0:00:58.8]} 21... axb4 {[%clk 0:01:15]} 22. Nbd2 {[%clk
0:00:58.8]} 22... Nf4 {[%clk 0:01:08.2]} 23. Bc4 {[%clk 0:00:31.5]} 23... Bh6
{[%clk 0:00:54.7]} 24. Bxf4 {[%clk 0:00:25.7]} 24... Bxf4 {[%clk 0:00:53.8]} 25.
Qe2 {[%clk 0:00:25.8]} 25... Bxc4 {[%clk 0:00:50.2]} 26. Nxc4 {[%clk 0:00:26.7]}
26... Nc5 {[%clk 0:00:44.6]} 27. g3 {[%clk 0:00:24.5]} 27... Bh6 {[%clk
0:00:42.8]} 28. Nfxe5 {[%clk 0:00:24.8]} 28... Qe6 {[%clk 0:00:31.6]} 29. Rxd8
{[%clk 0:00:17.1]} 29... Rxd8 {[%clk 0:00:31.8]} 30. Ng4 {[%clk 0:00:15.6]}
30... Bg7 {[%clk 0:00:30.7]} 31. Re1 {[%clk 0:00:15]} 31... b3 {[%clk
0:00:28.7]} 32. c3 {[%clk 0:00:14]} 32... Nd3 {[%clk 0:00:27.1]} 33. Rd1 {[%clk
0:00:06.8]} 33... Qxc4 {[%clk 0:00:26]} 34. Ne5 {[%clk 0:00:06.2]} 34... Bxe5
{[%clk 0:00:25.4]} 35. f4 {[%clk 0:00:05.1]} 0-1

[Event "*** Titled Tuesday Blitz"]
[Site "Chess.com"]
[Date "2020.04.14"]
[Round "9"]
[White "tonyq11"]
[Black "avocadosheena"]
[Result "1-0"]
[WhiteElo "2235"]
[BlackElo "2136"]
[TimeControl "180+1"]
[EndTime "11:42:44 PDT"]
[Termination "tonyq11 won by checkmate"]

1. d4 {[%clk 0:03:00.9]} 1... d5 {[%clk 0:02:59.4]} 2. c4 {[%clk 0:03:00.3]}
2... c6 {[%clk 0:02:59.4]} 3. Nf3 {[%clk 0:02:59.6]} 3... Nf6 {[%clk 0:02:59]}
4. Nc3 {[%clk 0:03:00]} 4... e6 {[%clk 0:02:58.9]} 5. e3 {[%clk 0:03:00.6]} 5...
a6 {[%clk 0:02:58]} 6. a4 {[%clk 0:02:59]} 6... c5 {[%clk 0:02:52.7]} 7. dxc5
{[%clk 0:02:44.5]} 7... Bxc5 {[%clk 0:02:53.6]} 8. cxd5 {[%clk 0:02:44.7]} 8...
exd5 {[%clk 0:02:53.1]} 9. Bd3 {[%clk 0:02:42.8]} 9... Nc6 {[%clk 0:02:48.4]}
10. O-O {[%clk 0:02:41.9]} 10... O-O {[%clk 0:02:47.2]} 11. e4 {[%clk
0:02:34.9]} 11... dxe4 {[%clk 0:02:28.1]} 12. Nxe4 {[%clk 0:02:35.8]} 12... Nxe4
{[%clk 0:02:26.8]} 13. Bxe4 {[%clk 0:02:35.8]} 13... Qxd1 {[%clk 0:02:26.8]} 14.
Rxd1 {[%clk 0:02:36.7]} 14... Bg4 {[%clk 0:02:24.8]} 15. Bf4 {[%clk 0:02:27.4]}
15... Bxf3 {[%clk 0:01:28.1]} 16. Bxf3 {[%clk 0:02:27]} 16... Nd4 {[%clk
0:01:28.2]} 17. Rd3 {[%clk 0:01:36]} 17... Nxf3+ {[%clk 0:01:25.7]} 18. Rxf3
{[%clk 0:01:33.7]} 18... Rad8 {[%clk 0:01:24]} 19. g4 {[%clk 0:01:25.5]} 19...
Rfe8 {[%clk 0:01:22.5]} 20. Rc1 {[%clk 0:01:21]} 20... Bd6 {[%clk 0:01:21.5]}
21. Bxd6 {[%clk 0:01:19.3]} 21... Rxd6 {[%clk 0:01:21.5]} 22. Rc7 {[%clk
0:01:19.3]} 22... f6 {[%clk 0:01:14.1]} 23. Rxb7 {[%clk 0:01:19]} 23... Rd4
{[%clk 0:01:14.4]} 24. h3 {[%clk 0:01:13.6]} 24... Rxa4 {[%clk 0:01:13.6]} 25.
Rd3 {[%clk 0:01:08.2]} 25... Ra1+ {[%clk 0:00:51.3]} 26. Kg2 {[%clk 0:01:07.2]}
26... h5 {[%clk 0:00:47.5]} 27. Rdd7 {[%clk 0:01:05.7]} 27... hxg4 {[%clk
0:00:36.5]} 28. Rxg7+ {[%clk 0:01:04.9]} 28... Kh8 {[%clk 0:00:35.8]} 29. hxg4
{[%clk 0:00:56.3]} 29... Ra4 {[%clk 0:00:20]} 30. Kg3 {[%clk 0:00:41.9]} 30...
Rae4 {[%clk 0:00:18.2]} 31. f3 {[%clk 0:00:40.4]} 31... Re1 {[%clk 0:00:17.8]}
32. Kf4 {[%clk 0:00:37.7]} 32... Rd8 {[%clk 0:00:17.1]} 33. Rgf7 {[%clk
0:00:25]} 33... Rf1 {[%clk 0:00:16.3]} 34. Rxf6 {[%clk 0:00:23.5]} 34... Re8
{[%clk 0:00:15.6]} 35. Kg3 {[%clk 0:00:22]} 35... Rg1+ {[%clk 0:00:15]} 36. Kf2
{[%clk 0:00:21.2]} 36... Rge1 {[%clk 0:00:14.8]} 37. Rxa6 {[%clk 0:00:20.8]}
37... R1e2+ {[%clk 0:00:14.4]} 38. Kg3 {[%clk 0:00:21.2]} 38... Re1 {[%clk
0:00:13.8]} 39. Rh6+ {[%clk 0:00:20.2]} 39... Kg8 {[%clk 0:00:13.5]} 40. Rg6+
{[%clk 0:00:20.4]} 40... Kf8 {[%clk 0:00:11.5]} 41. Rgg7 {[%clk 0:00:20.3]}
41... Rg1+ {[%clk 0:00:10.1]} 42. Kf2 {[%clk 0:00:20.1]} 42... Rb1 {[%clk
0:00:09.1]} 43. Rbf7# {[%clk 0:00:19.8]} 1-0

[Event "*** Titled Tuesday Blitz"]
[Site "Chess.com"]
[Date "2020.04.14"]
[Round "9"]
[White "krasavetc"]
[Black "ftorodent"]
[Result "0-1"]
[WhiteElo "2495"]
[BlackElo "2658"]
[TimeControl "180+1"]
[EndTime "11:42:45 PDT"]
[Termination "ftorodent won by checkmate"]

1. e4 {[%clk 0:03:00.1]} 1... c5 {[%clk 0:02:59.2]} 2. Nf3 {[%clk 0:03:00.4]}
2... e6 {[%clk 0:02:59.1]} 3. c3 {[%clk 0:03:00.1]} 3... Nf6 {[%clk 0:02:58.4]}
4. d3 {[%clk 0:02:59.4]} 4... Nc6 {[%clk 0:02:56.9]} 5. g3 {[%clk 0:02:59.1]}
5... d5 {[%clk 0:02:55.3]} 6. Qe2 {[%clk 0:02:58.4]} 6... Be7 {[%clk 0:02:49.9]}
7. Nbd2 {[%clk 0:02:57.3]} 7... b6 {[%clk 0:02:45.7]} 8. e5 {[%clk 0:02:56.4]}
8... Nd7 {[%clk 0:02:45.2]} 9. Bg2 {[%clk 0:02:56.7]} 9... Ba6 {[%clk
0:02:43.4]} 10. O-O {[%clk 0:02:56]} 10... Qc7 {[%clk 0:02:39.4]} 11. Re1 {[%clk
0:02:55.8]} 11... g5 {[%clk 0:02:39.6]} 12. h3 {[%clk 0:02:55.1]} 12... h5
{[%clk 0:02:39.6]} 13. c4 {[%clk 0:02:53.8]} 13... g4 {[%clk 0:02:15.3]} 14.
hxg4 {[%clk 0:02:28.6]} 14... hxg4 {[%clk 0:02:14.6]} 15. Nh2 {[%clk 0:02:29.1]}
15... Ncxe5 {[%clk 0:02:11]} 16. cxd5 {[%clk 0:02:25.9]} 16... Bxd3 {[%clk
0:01:48.1]} 17. Qe3 {[%clk 0:02:16.1]} 17... exd5 {[%clk 0:01:47.5]} 18. Nxg4
{[%clk 0:02:06]} 18... f6 {[%clk 0:01:24.5]} 19. Nxe5 {[%clk 0:01:59.7]} 19...
Nxe5 {[%clk 0:01:24]} 20. Nf3 {[%clk 0:01:51]} 20... d4 {[%clk 0:01:06.3]} 21.
Qf4 {[%clk 0:01:48.3]} 21... O-O-O {[%clk 0:01:04.5]} 22. Nxe5 {[%clk
0:01:31.9]} 22... fxe5 {[%clk 0:01:04.2]} 23. Rxe5 {[%clk 0:01:30]} 23... Bd6
{[%clk 0:00:56.6]} 24. Qg4+ {[%clk 0:01:29.7]} 24... Qd7 {[%clk 0:00:56.4]} 25.
Qf3 {[%clk 0:00:40.8]} 25... Bxe5 {[%clk 0:00:41]} 26. Qxd3 {[%clk 0:00:40.5]}
26... Kc7 {[%clk 0:00:25.7]} 27. Bg5 {[%clk 0:00:39.1]} 27... Rdg8 {[%clk
0:00:24.2]} 28. Bh4 {[%clk 0:00:32.2]} 28... Rxh4 {[%clk 0:00:23]} 29. gxh4
{[%clk 0:00:31.9]} 29... Qg4 {[%clk 0:00:23]} 30. Qf1 {[%clk 0:00:19.3]} 30...
Qxh4 {[%clk 0:00:22.5]} 31. Qe2 {[%clk 0:00:18.9]} 31... Qh2+ {[%clk 0:00:21.3]}
32. Kf1 {[%clk 0:00:18.7]} 32... Qxg2+ {[%clk 0:00:21.4]} 33. Ke1 {[%clk
0:00:19.5]} 33... Re8 {[%clk 0:00:18.9]} 34. Kd1 {[%clk 0:00:18.5]} 34... Qg1+
{[%clk 0:00:18.1]} 35. Kc2 {[%clk 0:00:18.9]} 35... Qxa1 {[%clk 0:00:18.7]} 36.
Qh5 {[%clk 0:00:19.1]} 36... d3+ {[%clk 0:00:19]} 37. Kxd3 {[%clk 0:00:18]}
37... Qd1+ {[%clk 0:00:19]} 38. Kc4 {[%clk 0:00:18.6]} 38... Qd4+ {[%clk
0:00:19]} 39. Kb5 {[%clk 0:00:19.4]} 39... Qb4+ {[%clk 0:00:18.8]} 40. Ka6
{[%clk 0:00:20.3]} 40... Qa5# {[%clk 0:00:18.9]} 0-1

[Event "*** Titled Tuesday Blitz"]
[Site "Chess.com"]
[Date "2020.04.14"]
[Round "9"]
[White "narutosmith"]
[Black "RaunakSadhwani2005"]
[Result "0-1"]
[WhiteElo "2243"]
[BlackElo "2792"]
[TimeControl "180+1"]
[EndTime "11:42:46 PDT"]
[Termination "RaunakSadhwani2005 won on time"]

1. c4 {[%clk 0:03:00.9]} 1... Nf6 {[%clk 0:03:00.9]} 2. Nc3 {[%clk 0:03:00.5]}
2... g6 {[%clk 0:02:59.9]} 3. g3 {[%clk 0:02:59.9]} 3... Bg7 {[%clk 0:02:52.1]}
4. Bg2 {[%clk 0:03:00.5]} 4... O-O {[%clk 0:02:53]} 5. Rb1 {[%clk 0:02:59.5]}
5... c5 {[%clk 0:02:53.1]} 6. a3 {[%clk 0:02:59.3]} 6... Nc6 {[%clk 0:02:47.4]}
7. b4 {[%clk 0:02:53.9]} 7... d6 {[%clk 0:02:47.7]} 8. e3 {[%clk 0:02:47.8]}
8... Bg4 {[%clk 0:02:44]} 9. Nge2 {[%clk 0:02:44.2]} 9... Ne5 {[%clk 0:02:40.2]}
10. O-O {[%clk 0:02:08.7]} 10... Nxc4 {[%clk 0:02:28.5]} 11. Bxb7 {[%clk
0:02:00.9]} 11... Rb8 {[%clk 0:02:27.9]} 12. Bg2 {[%clk 0:02:00.2]} 12... Ne5
{[%clk 0:02:21.5]} 13. f3 {[%clk 0:01:56]} 13... Bf5 {[%clk 0:02:18.6]} 14. e4
{[%clk 0:01:56.1]} 14... Bd7 {[%clk 0:02:18.9]} 15. d4 {[%clk 0:01:51.4]} 15...
cxd4 {[%clk 0:02:19.4]} 16. Nxd4 {[%clk 0:01:48.7]} 16... h5 {[%clk 0:02:19.7]}
17. h3 {[%clk 0:01:28.2]} 17... Qc7 {[%clk 0:02:16.2]} 18. Nce2 {[%clk
0:01:21.1]} 18... Rfc8 {[%clk 0:02:12.9]} 19. f4 {[%clk 0:01:13.2]} 19... Nc4
{[%clk 0:02:13.2]} 20. Qb3 {[%clk 0:01:10.8]} 20... e5 {[%clk 0:02:04.1]} 21.
Nf3 {[%clk 0:00:54.1]} 21... Nxe4 {[%clk 0:02:02.3]} 22. Nxe5 {[%clk 0:00:50.8]}
22... dxe5 {[%clk 0:02:03.2]} 23. Bxe4 {[%clk 0:00:50.6]} 23... Bxh3 {[%clk
0:01:59.3]} 24. Rd1 {[%clk 0:00:48.9]} 24... Qb6+ {[%clk 0:01:55.3]} 25. Kh1
{[%clk 0:00:44.2]} 25... Qf2 {[%clk 0:01:49.1]} 26. Qf3 {[%clk 0:00:41.2]} 26...
Qb6 {[%clk 0:01:43.1]} 27. Kh2 {[%clk 0:00:12.7]} 27... Bg4 {[%clk 0:01:42.3]}
28. Qg2 {[%clk 0:00:12.6]} 28... Ne3 {[%clk 0:01:40]} 29. Bxe3 {[%clk 0:00:12]}
29... Qxe3 {[%clk 0:01:40.9]} 30. Re1 {[%clk 0:00:11.9]} 30... exf4 {[%clk
0:01:32.1]} 31. Nxf4 {[%clk 0:00:11.4]} 31... Qxa3 {[%clk 0:01:32.5]} 32. Bd5
{[%clk 0:00:09.9]} 32... Bf5 {[%clk 0:01:15.1]} 33. Rbd1 {[%clk 0:00:07.7]}
33... Qxb4 {[%clk 0:01:12.4]} 34. Qf2 {[%clk 0:00:03.9]} 34... a5 {[%clk
0:01:06.9]} 35. Nxh5 {[%clk 0:00:03.8]} 35... Qb2 {[%clk 0:01:05.3]} 36. Re2
{[%clk 0:00:02.2]} 36... Qxe2 {[%clk 0:00:30.3]} 37. Nxg7 {[%clk 0:00:02.2]}
37... Qxf2+ {[%clk 0:00:30.1]} 0-1

[Event "*** Titled Tuesday Blitz"]
[Site "Chess.com"]
[Date "2020.04.14"]
[Round "9"]
[White "MartinMatthiesen"]
[Black "ClassyEl"]
[Result "0-1"]
[WhiteElo "2423"]
[BlackElo "2690"]
[TimeControl "180+1"]
[EndTime "11:42:46 PDT"]
[Termination "ClassyEl won by resignation"]

1. d4 {[%clk 0:03:00.9]} 1... Nf6 {[%clk 0:02:58.8]} 2. c4 {[%clk 0:03:00.3]}
2... e6 {[%clk 0:02:59.3]} 3. Nf3 {[%clk 0:02:59.6]} 3... c5 {[%clk 0:02:59.9]}
4. d5 {[%clk 0:02:58.7]} 4... exd5 {[%clk 0:03:00.6]} 5. cxd5 {[%clk 0:02:58.9]}
5... Bd6 {[%clk 0:03:01.4]} 6. Nc3 {[%clk 0:02:58]} 6... Bc7 {[%clk 0:03:02.1]}
7. d6 {[%clk 0:02:56.6]} 7... Ba5 {[%clk 0:03:01.9]} 8. g3 {[%clk 0:02:56.4]}
8... O-O {[%clk 0:03:02.4]} 9. Bg2 {[%clk 0:02:56.2]} 9... Nc6 {[%clk
0:03:03.1]} 10. O-O {[%clk 0:02:55.5]} 10... Re8 {[%clk 0:03:03.5]} 11. Bg5
{[%clk 0:02:53.6]} 11... Bxc3 {[%clk 0:03:03.2]} 12. bxc3 {[%clk 0:02:53.1]}
12... h6 {[%clk 0:03:03.7]} 13. Bh4 {[%clk 0:02:44.6]} 13... b6 {[%clk
0:03:04.1]} 14. Re1 {[%clk 0:02:37.5]} 14... g5 {[%clk 0:02:36.7]} 15. Nxg5
{[%clk 0:02:36.2]} 15... hxg5 {[%clk 0:02:36.7]} 16. Bxg5 {[%clk 0:02:36.8]}
16... Re6 {[%clk 0:02:30.2]} 17. e4 {[%clk 0:02:16.1]} 17... Rb8 {[%clk
0:02:17.5]} 18. f4 {[%clk 0:02:06.7]} 18... Qf8 {[%clk 0:02:16.6]} 19. e5 {[%clk
0:02:05.5]} 19... Nh7 {[%clk 0:02:16.8]} 20. Bh4 {[%clk 0:02:05.2]} 20... Bb7
{[%clk 0:02:12.3]} 21. Be4 {[%clk 0:01:35.7]} 21... Rh6 {[%clk 0:02:07.1]} 22.
Bxh7+ {[%clk 0:00:49.2]} 22... Kxh7 {[%clk 0:02:02.8]} 23. Bg5 {[%clk
0:00:48.7]} 23... Re8 {[%clk 0:01:43.5]} 24. Bxh6 {[%clk 0:00:40.7]} 24... Qxh6
{[%clk 0:01:43.3]} 25. Qc2+ {[%clk 0:00:32.5]} 25... Kg7 {[%clk 0:01:41.3]} 26.
Re2 {[%clk 0:00:29.5]} 26... Qh3 {[%clk 0:01:36.4]} 27. Rae1 {[%clk 0:00:27.9]}
27... Nd8 {[%clk 0:01:35.7]} 28. f5 {[%clk 0:00:17.6]} 28... Rh8 {[%clk
0:01:28.7]} 29. Rd2 {[%clk 0:00:15.4]} 29... Rh5 {[%clk 0:01:14.5]} 30. Rf1
{[%clk 0:00:10]} 30... Qg4 {[%clk 0:01:01.8]} 31. Rf4 {[%clk 0:00:08]} 31... Qh3
{[%clk 0:00:56.6]} 32. Rdf2 {[%clk 0:00:07.7]} 32... Qxg3+ {[%clk 0:00:48.8]}
33. Kf1 {[%clk 0:00:08]} 33... Qe3 {[%clk 0:00:37.7]} 34. Qe2 {[%clk 0:00:06.1]}
34... Qc1+ {[%clk 0:00:28.8]} 35. Qe1 {[%clk 0:00:06.2]} 35... Ba6+ {[%clk
0:00:29.4]} 36. c4 {[%clk 0:00:06]} 36... Bxc4+ {[%clk 0:00:29.5]} 37. Rxc4
{[%clk 0:00:05.6]} 37... Qxc4+ {[%clk 0:00:29.7]} 38. Kg1 {[%clk 0:00:05.8]}
38... Rg5+ {[%clk 0:00:29.7]} 39. Kh1 {[%clk 0:00:05.8]} 39... Qd5+ {[%clk
0:00:29.7]} 0-1